[Event "Titled Tuesday Blitz August 09 Late 2022"]
[White "Papasimakopoulos, Alexandros"]
[Black "Yurasova, Daria"]
[WhiteFideId "4244125"]
[BlackFideId "34146919"]
[WhiteElo "2357"]
[BlackElo "2021"]
[Result "1-0"]
[Round "08"]
[TimeControl "180+1"]
[Date "2022.08.09"]
[WhiteClock "0:01:55"]
[BlackClock "0:00:07"]

1. d4 {[%clk 0:03:00]}  d5 {[%clk 0:02:58]} 2. c4 {[%clk 0:03:00]}  c6 {[%clk 0:02:58]} 3. cxd5 {[%clk 0:03:01]}  cxd5 {[%clk 0:02:59]} 4. Bf4 {[%clk 0:03:02]}  Nc6 {[%clk 0:02:58]} 5. e3 {[%clk 0:03:02]}  Nf6 {[%clk 0:02:58]} 6. Nc3 {[%clk 0:03:03]}  Bf5 {[%clk 0:02:58]} 7. Qb3 {[%clk 0:03:01]}  Na5 {[%clk 0:02:43]} 8. Qa4+ {[%clk 0:03:01]}  Nc6 {[%clk 0:02:43]} 9. Bb5 {[%clk 0:02:58]}  Qb6 {[%clk 0:02:39]} 10. Nf3 {[%clk 0:02:57]}  e6 {[%clk 0:02:38]} 11. Ne5 {[%clk 0:02:57]}  Rc8 {[%clk 0:02:38]} 12. O-O {[%clk 0:02:53]}  Be7 {[%clk 0:02:36]} 13. Rfc1 {[%clk 0:02:47]}  O-O {[%clk 0:02:35]} 14. Nxc6 {[%clk 0:02:46]}  bxc6 {[%clk 0:02:36]} 15. Ba6 {[%clk 0:02:47]}  Rcd8 {[%clk 0:02:27]} 16. b3 {[%clk 0:02:38]}  c5 {[%clk 0:02:02]} 17. Nb5 {[%clk 0:02:35]}  Rd7 {[%clk 0:02:02]} 18. dxc5 {[%clk 0:02:32]}  Bxc5 {[%clk 0:02:03]} 19. b4 {[%clk 0:02:32]}  Bxb4 {[%clk 0:01:36]} 20. Qxb4 {[%clk 0:02:32]}  Qxa6 {[%clk 0:01:35]} 21. Nd4 {[%clk 0:02:33]}  Bg6 {[%clk 0:01:25]} 22. h3 {[%clk 0:02:33]}  h6 {[%clk 0:01:24]} 23. Rc6 {[%clk 0:02:32]}  Qb7 {[%clk 0:01:23]} 24. Qa5 {[%clk 0:02:22]}  Ne4 {[%clk 0:01:14]} 25. Rac1 {[%clk 0:02:22]}  Qb2 {[%clk 0:01:08]} 26. R6c2 {[%clk 0:02:22]}  Qb7 {[%clk 0:01:06]} 27. f3 {[%clk 0:02:17]}  Nf6 {[%clk 0:01:02]} 28. Kh2 {[%clk 0:02:16]}  Bxc2 {[%clk 0:01:02]} 29. Rxc2 {[%clk 0:02:16]}  Rc8 {[%clk 0:01:01]} 30. Rd2 {[%clk 0:02:14]}  Qb6 {[%clk 0:00:58]} 31. Qa4 {[%clk 0:02:14]}  Rdd8 {[%clk 0:00:58]} 32. Be5 {[%clk 0:02:14]}  Nd7 {[%clk 0:00:57]} 33. Bg3 {[%clk 0:02:14]}  Nc5 {[%clk 0:00:58]} 34. Qd1 {[%clk 0:02:12]}  Re8 {[%clk 0:00:53]} 35. Qe2 {[%clk 0:02:11]}  Qd8 {[%clk 0:00:50]} 36. Rb2 {[%clk 0:02:10]}  Qf6 {[%clk 0:00:49]} 37. Nb5 {[%clk 0:02:05]}  e5 {[%clk 0:00:42]} 38. Nxa7 {[%clk 0:02:02]}  Ra8 {[%clk 0:00:40]} 39. Nb5 {[%clk 0:02:02]}  Reb8 {[%clk 0:00:36]} 40. Rd2 {[%clk 0:01:59]}  Qc6 {[%clk 0:00:34]} 41. Nc3 {[%clk 0:01:58]}  Nb3 {[%clk 0:00:20]} 42. Nxd5 {[%clk 0:01:56]}  Qe6 {[%clk 0:00:07]} 43. axb3 {[%clk 0:01:56]}  Rd8 {[%clk 0:00:07]} 44. Nc7 {[%clk 0:01:54]}  Rxd2 {[%clk 0:00:07]} 45. Qxd2 {[%clk 0:01:55]}  Qc6 {[%clk 0:00:07]} 46. Nxa8 {[%clk 0:01:55]}  Qxa8 {[%clk 0:00:08]} 47. Bxe5 {[%clk 0:01:55]}  Qe8 {[%clk 0:00:08]} 48. Qd6 {[%clk 0:01:55]}  f6 {[%clk 0:00:07]} 49. Qb8 {[%clk 0:01:55]} 1-0


[Site "https://www.chess.com"]

[Event "Titled Tuesday Blitz August 09 Late 2022"]
[White "Pinheiro, Iung Alicio de O."]
[Black "Graif, William"]
[WhiteFideId "2104350"]
[BlackFideId "2609835"]
[WhiteElo "2283"]
[BlackElo "1942"]
[Result "1-0"]
[Round "08"]
[TimeControl "180+1"]
[Date "2022.08.09"]
[WhiteClock "0:00:19"]
[BlackClock "0:00:02"]

1. e4 {[%clk 0:03:00]}  e5 {[%clk 0:02:59]} 2. Bc4 {[%clk 0:02:59]}  Bc5 {[%clk 0:02:53]} 3. Qh5 {[%clk 0:02:48]}  Qe7 {[%clk 0:02:50]} 4. Nc3 {[%clk 0:02:39]}  Nf6 {[%clk 0:02:47]} 5. Qf3 {[%clk 0:02:29]}  Nc6 {[%clk 0:02:32]} 6. Nge2 {[%clk 0:02:28]}  Nd4 {[%clk 0:02:15]} 7. Nxd4 {[%clk 0:02:23]}  Bxd4 {[%clk 0:01:58]} 8. d3 {[%clk 0:02:18]}  c6 {[%clk 0:01:56]} 9. h3 {[%clk 0:02:06]}  d6 {[%clk 0:01:52]} 10. Bb3 {[%clk 0:02:04]}  Be6 {[%clk 0:01:35]} 11. Ne2 {[%clk 0:01:59]}  Bb6 {[%clk 0:01:27]} 12. Ng3 {[%clk 0:01:47]}  g6 {[%clk 0:00:42]} 13. Bg5 {[%clk 0:01:43]}  Bd8 {[%clk 0:00:42]} 14. O-O {[%clk 0:01:33]}  h6 {[%clk 0:00:41]} 15. Bd2 {[%clk 0:01:30]}  Bb6 {[%clk 0:00:37]} 16. Be3 {[%clk 0:01:18]}  O-O-O {[%clk 0:00:33]} 17. Bxb6 {[%clk 0:01:17]}  axb6 {[%clk 0:00:34]} 18. Qe3 {[%clk 0:01:17]}  Kc7 {[%clk 0:00:34]} 19. f4 {[%clk 0:01:16]}  Nd7 {[%clk 0:00:26]} 20. f5 {[%clk 0:00:59]}  Bxb3 {[%clk 0:00:25]} 21. axb3 {[%clk 0:00:59]}  g5 {[%clk 0:00:23]} 22. c3 {[%clk 0:00:57]}  h5 {[%clk 0:00:20]} 23. f6 {[%clk 0:00:54]}  Qe6 {[%clk 0:00:17]} 24. Qxg5 {[%clk 0:00:48]}  Rdg8 {[%clk 0:00:17]} 25. Qh4 {[%clk 0:00:48]}  Rg6 {[%clk 0:00:16]} 26. Rf2 {[%clk 0:00:43]}  Rhg8 {[%clk 0:00:15]} 27. Nf5 {[%clk 0:00:41]}  Nxf6 {[%clk 0:00:13]} 28. Raf1 {[%clk 0:00:39]}  Nd7 {[%clk 0:00:09]} 29. b4 {[%clk 0:00:36]}  d5 {[%clk 0:00:08]} 30. Ne3 {[%clk 0:00:36]}  d4 {[%clk 0:00:07]} 31. cxd4 {[%clk 0:00:34]}  exd4 {[%clk 0:00:08]} 32. Qf4+ {[%clk 0:00:34]}  Ne5 {[%clk 0:00:07]} 33. Nc4 {[%clk 0:00:33]}  f6 {[%clk 0:00:03]} 34. Kh2 {[%clk 0:00:27]}  b5 {[%clk 0:00:02]} 35. Nxe5 {[%clk 0:00:26]}  fxe5 {[%clk 0:00:03]} 36. Qf7+ {[%clk 0:00:25]}  Qxf7 {[%clk 0:00:03]} 37. Rxf7+ {[%clk 0:00:26]}  Kb6 {[%clk 0:00:03]} 38. R1f2 {[%clk 0:00:27]}  R8g7 {[%clk 0:00:03]} 39. R7f5 {[%clk 0:00:26]}  Rg5 {[%clk 0:00:03]} 40. Rxg5 {[%clk 0:00:26]}  Rxg5 {[%clk 0:00:04]} 41. g3 {[%clk 0:00:25]}  c5 {[%clk 0:00:04]} 42. bxc5+ {[%clk 0:00:24]}  Kxc5 {[%clk 0:00:05]} 43. Rf5 {[%clk 0:00:24]}  Rxf5 {[%clk 0:00:04]} 44. exf5 {[%clk 0:00:24]}  e4 {[%clk 0:00:04]} 45. f6 {[%clk 0:00:21]}  Kd6 {[%clk 0:00:02]} 46. Kg2 {[%clk 0:00:19]} 1-0


[Site "https://www.chess.com"]

[Event "Titled Tuesday Blitz August 09 Late 2022"]
[White "Riehle, Marco"]
[Black "Voege, Tobias"]
[WhiteFideId "12904392"]
[BlackFideId "1270513"]
[WhiteElo "2462"]
[BlackElo "2360"]
[Result "0-1"]
[Round "08"]
[TimeControl "180+1"]
[Date "2022.08.09"]
[WhiteClock "0:00:09"]
[BlackClock "0:00:03"]

1. e4 {[%clk 0:03:00]}  c5 {[%clk 0:02:59]} 2. a3 {[%clk 0:02:59]}  g6 {[%clk 0:02:58]} 3. h4 {[%clk 0:02:59]}  h5 {[%clk 0:02:58]} 4. Bc4 {[%clk 0:02:55]}  Nc6 {[%clk 0:02:57]} 5. Nc3 {[%clk 0:02:52]}  Bg7 {[%clk 0:02:54]} 6. d3 {[%clk 0:02:49]}  e6 {[%clk 0:02:49]} 7. Bg5 {[%clk 0:02:49]}  Nge7 {[%clk 0:02:46]} 8. Qd2 {[%clk 0:02:48]}  a6 {[%clk 0:02:28]} 9. Nge2 {[%clk 0:02:46]}  b5 {[%clk 0:02:27]} 10. Bb3 {[%clk 0:02:45]}  Qc7 {[%clk 0:02:14]} 11. O-O-O {[%clk 0:02:42]}  d6 {[%clk 0:01:57]} 12. f4 {[%clk 0:02:39]}  f6 {[%clk 0:01:55]} 13. f5 {[%clk 0:02:38]}  fxg5 {[%clk 0:01:53]} 14. fxe6 {[%clk 0:02:36]}  Nd4 {[%clk 0:01:46]} 15. Nxd4 {[%clk 0:02:28]}  cxd4 {[%clk 0:01:39]} 16. Nd5 {[%clk 0:02:27]}  Nxd5 {[%clk 0:01:39]} 17. Bxd5 {[%clk 0:02:28]}  Bb7 {[%clk 0:01:39]} 18. hxg5 {[%clk 0:02:27]}  Bxd5 {[%clk 0:01:33]} 19. exd5 {[%clk 0:02:28]}  Rf8 {[%clk 0:01:10]} 20. Kb1 {[%clk 0:02:24]}  O-O-O {[%clk 0:01:08]} 21. Rhe1 {[%clk 0:02:19]}  Be5 {[%clk 0:01:06]} 22. Re2 {[%clk 0:02:13]}  Rf5 {[%clk 0:01:02]} 23. a4 {[%clk 0:02:00]}  Kb7 {[%clk 0:00:59]} 24. Qb4 {[%clk 0:01:57]}  Qb6 {[%clk 0:00:55]} 25. Rde1 {[%clk 0:01:49]}  bxa4 {[%clk 0:00:47]} 26. Qxa4 {[%clk 0:01:49]}  Qb5 {[%clk 0:00:47]} 27. Qa2 {[%clk 0:01:43]}  Re8 {[%clk 0:00:43]} 28. Re4 {[%clk 0:01:17]}  Bg3 {[%clk 0:00:35]} 29. Rd1 {[%clk 0:01:06]}  Qxd5 {[%clk 0:00:32]} 30. c4 {[%clk 0:01:01]}  Qc5 {[%clk 0:00:20]} 31. Qa4 {[%clk 0:00:56]}  Re7 {[%clk 0:00:20]} 32. b4 {[%clk 0:00:53]}  Qb6 {[%clk 0:00:19]} 33. Kc2 {[%clk 0:00:43]}  Be5 {[%clk 0:00:19]} 34. Rb1 {[%clk 0:00:40]}  Rf2+ {[%clk 0:00:20]} 35. Kb3 {[%clk 0:00:41]}  Kc7 {[%clk 0:00:19]} 36. Ra1 {[%clk 0:00:35]}  Rxe6 {[%clk 0:00:19]} 37. Qxa6 {[%clk 0:00:25]}  Qxa6 {[%clk 0:00:20]} 38. Rxa6 {[%clk 0:00:25]}  Rxg2 {[%clk 0:00:19]} 39. c5 {[%clk 0:00:23]}  Re7 {[%clk 0:00:11]} 40. Kc4 {[%clk 0:00:19]}  Kd7 {[%clk 0:00:10]} 41. Kd5 {[%clk 0:00:18]}  Rxg5 {[%clk 0:00:08]} 42. c6+ {[%clk 0:00:10]}  Ke8 {[%clk 0:00:05]} 43. Ra8+ {[%clk 0:00:10]}  Kf7 {[%clk 0:00:05]} 44. b5 {[%clk 0:00:11]}  Bg3+ {[%clk 0:00:03]} 45. Kc4 {[%clk 0:00:11]}  Rc5+ {[%clk 0:00:03]} 46. Kxd4 {[%clk 0:00:10]}  Bf2+ {[%clk 0:00:03]} 47. Re3 {[%clk 0:00:09]}  Bxe3# {[%clk 0:00:03]} 0-1


[Site "https://www.chess.com"]

[Event "Titled Tuesday Blitz August 09 Late 2022"]
[White "Rustemov, Alexander"]
[Black "Ekdyshman, Mikhail"]
[WhiteFideId "4119002"]
[BlackFideId "4149416"]
[WhiteElo "2784"]
[BlackElo "2146"]
[Result "0-1"]
[Round "08"]
[TimeControl "180+1"]
[Date "2022.08.09"]
[WhiteClock "0:01:05"]
[BlackClock "0:00:34"]

1. d4 {[%clk 0:03:00]}  Nf6 {[%clk 0:02:59]} 2. c4 {[%clk 0:03:00]}  c5 {[%clk 0:03:00]} 3. d5 {[%clk 0:02:59]}  b5 {[%clk 0:03:00]} 4. cxb5 {[%clk 0:03:00]}  a6 {[%clk 0:03:01]} 5. e3 {[%clk 0:02:59]}  axb5 {[%clk 0:03:01]} 6. Bxb5 {[%clk 0:02:59]}  Qa5+ {[%clk 0:03:02]} 7. Nc3 {[%clk 0:02:56]}  Bb7 {[%clk 0:03:02]} 8. Bd2 {[%clk 0:02:43]}  e6 {[%clk 0:03:01]} 9. Nf3 {[%clk 0:02:39]}  Qb6 {[%clk 0:03:00]} 10. dxe6 {[%clk 0:02:31]}  fxe6 {[%clk 0:03:01]} 11. O-O {[%clk 0:02:27]}  Be7 {[%clk 0:03:01]} 12. a4 {[%clk 0:02:24]}  O-O {[%clk 0:03:00]} 13. Qe2 {[%clk 0:02:20]}  Qc7 {[%clk 0:02:58]} 14. e4 {[%clk 0:02:16]}  Ng4 {[%clk 0:02:52]} 15. g3 {[%clk 0:02:10]}  Nc6 {[%clk 0:02:45]} 16. Bxc6 {[%clk 0:02:08]}  Bxc6 {[%clk 0:02:33]} 17. h3 {[%clk 0:02:07]}  Ne5 {[%clk 0:02:15]} 18. Nxe5 {[%clk 0:02:03]}  Qxe5 {[%clk 0:02:16]} 19. f4 {[%clk 0:02:02]}  Qf6 {[%clk 0:02:11]} 20. Kh2 {[%clk 0:01:56]}  Qg6 {[%clk 0:02:07]} 21. g4 {[%clk 0:01:44]}  Rab8 {[%clk 0:02:02]} 22. Rab1 {[%clk 0:01:42]}  Rb4 {[%clk 0:01:45]} 23. f5 {[%clk 0:01:42]}  exf5 {[%clk 0:01:43]} 24. exf5 {[%clk 0:01:41]}  Bd6+ {[%clk 0:01:36]} 25. Kg1 {[%clk 0:01:41]}  Qf6 {[%clk 0:01:17]} 26. Qf2 {[%clk 0:01:34]}  Be5 {[%clk 0:01:10]} 27. Bf4 {[%clk 0:01:33]}  Rxf4 {[%clk 0:01:08]} 28. Qxf4 {[%clk 0:01:23]}  Bxf4 {[%clk 0:01:08]} 29. Rxf4 {[%clk 0:01:24]}  Qh6 {[%clk 0:01:06]} 30. Ne2 {[%clk 0:01:12]}  Qxh3 {[%clk 0:01:03]} 31. Kf2 {[%clk 0:01:07]}  Qh2+ {[%clk 0:01:00]} 32. Ke1 {[%clk 0:01:07]}  Re8 {[%clk 0:00:58]} 33. Rf2 {[%clk 0:01:05]}  Qh1+ {[%clk 0:00:35]} 34. Rf1 {[%clk 0:01:05]}  Qe4 {[%clk 0:00:34]} 0-1


[Site "https://www.chess.com"]

[Event "Titled Tuesday Blitz August 09 Late 2022"]
[White "Salem, A.R. Saleh"]
[Black "Goltsev, Dmitry"]
[WhiteFideId "9301348"]
[BlackFideId "24176710"]
[WhiteElo "2674"]
[BlackElo "2258"]
[Result "1-0"]
[Round "08"]
[TimeControl "180+1"]
[Date "2022.08.09"]
[WhiteClock "0:00:54"]
[BlackClock "0:00:02"]

1. d4 {[%clk 0:03:00]}  Nf6 {[%clk 0:02:55]} 2. c4 {[%clk 0:03:01]}  e6 {[%clk 0:02:55]} 3. Nc3 {[%clk 0:03:02]}  Bb4 {[%clk 0:02:56]} 4. a3 {[%clk 0:03:02]}  Bxc3+ {[%clk 0:02:56]} 5. bxc3 {[%clk 0:03:03]}  b6 {[%clk 0:02:56]} 6. f3 {[%clk 0:03:04]}  Bb7 {[%clk 0:02:57]} 7. e4 {[%clk 0:03:04]}  d6 {[%clk 0:02:58]} 8. Bd3 {[%clk 0:03:03]}  Nbd7 {[%clk 0:02:56]} 9. Ne2 {[%clk 0:03:03]}  e5 {[%clk 0:02:57]} 10. O-O {[%clk 0:03:03]}  a5 {[%clk 0:02:57]} 11. Ng3 {[%clk 0:02:59]}  O-O {[%clk 0:02:52]} 12. Nf5 {[%clk 0:02:56]}  Re8 {[%clk 0:02:47]} 13. Bg5 {[%clk 0:02:53]}  h6 {[%clk 0:02:44]} 14. Bh4 {[%clk 0:02:53]}  Nf8 {[%clk 0:02:41]} 15. Qd2 {[%clk 0:02:51]}  Ng6 {[%clk 0:02:36]} 16. Bg3 {[%clk 0:02:46]}  Bc8 {[%clk 0:02:35]} 17. Ne3 {[%clk 0:02:41]}  Nf4 {[%clk 0:02:31]} 18. Rfd1 {[%clk 0:02:35]}  g5 {[%clk 0:02:28]} 19. Bf1 {[%clk 0:02:31]}  Qe7 {[%clk 0:02:26]} 20. Rab1 {[%clk 0:02:30]}  Be6 {[%clk 0:02:24]} 21. Bf2 {[%clk 0:02:28]}  Red8 {[%clk 0:02:16]} 22. Qc2 {[%clk 0:02:25]}  Bd7 {[%clk 0:02:11]} 23. Kh1 {[%clk 0:02:14]}  Kh8 {[%clk 0:02:08]} 24. Re1 {[%clk 0:02:10]}  Rg8 {[%clk 0:02:05]} 25. Nf5 {[%clk 0:02:09]}  Qf8 {[%clk 0:02:03]} 26. g3 {[%clk 0:02:08]}  Ng6 {[%clk 0:02:00]} 27. Qd2 {[%clk 0:02:06]}  Rd8 {[%clk 0:01:56]} 28. Bd3 {[%clk 0:02:00]}  Kh7 {[%clk 0:01:53]} 29. Be3 {[%clk 0:01:59]}  Bxf5 {[%clk 0:01:46]} 30. exf5 {[%clk 0:01:59]}  Ne7 {[%clk 0:01:47]} 31. Bc2 {[%clk 0:01:46]}  g4 {[%clk 0:01:39]} 32. fxg4 {[%clk 0:01:42]}  Rxg4 {[%clk 0:01:39]} 33. Rbd1 {[%clk 0:01:35]}  e4 {[%clk 0:01:32]} 34. Rf1 {[%clk 0:01:31]}  Qg7 {[%clk 0:01:25]} 35. Rde1 {[%clk 0:01:30]}  d5 {[%clk 0:01:18]} 36. Bd1 {[%clk 0:01:28]}  Rg5 {[%clk 0:01:04]} 37. Bf4 {[%clk 0:01:20]}  Rd7 {[%clk 0:00:58]} 38. Ba4 {[%clk 0:01:16]}  c6 {[%clk 0:00:56]} 39. cxd5 {[%clk 0:01:13]}  Rxd5 {[%clk 0:00:55]} 40. Be5 {[%clk 0:01:09]}  b5 {[%clk 0:00:22]} 41. Bb3 {[%clk 0:01:09]}  Rd7 {[%clk 0:00:21]} 42. Bc2 {[%clk 0:01:03]}  Nxf5 {[%clk 0:00:07]} 43. Qf4 {[%clk 0:00:59]}  Qg6 {[%clk 0:00:07]} 44. Bxf6 {[%clk 0:00:58]}  Qxf6 {[%clk 0:00:08]} 45. Bxe4 {[%clk 0:00:59]}  Rd5 {[%clk 0:00:04]} 46. Bxd5 {[%clk 0:00:57]}  cxd5 {[%clk 0:00:04]} 47. g4 {[%clk 0:00:56]}  Qg6 {[%clk 0:00:02]} 48. gxf5 {[%clk 0:00:56]}  Qh5 {[%clk 0:00:02]} 49. Rg1 {[%clk 0:00:54]} 1-0


[Site "https://www.chess.com"]

[Event "Titled Tuesday Blitz August 09 Late 2022"]
[White "Shimanov, Aleksandr"]
[Black "Schmakel, Sam"]
[WhiteFideId "4198603"]
[BlackFideId "2039311"]
[WhiteElo "2605"]
[BlackElo "2356"]
[Result "1-0"]
[Round "08"]
[TimeControl "180+1"]
[Date "2022.08.09"]
[WhiteClock "0:00:05"]
[BlackClock "0:00:02"]

1. e4 {[%clk 0:03:00]}  g6 {[%clk 0:02:59]} 2. d4 {[%clk 0:02:54]}  Bg7 {[%clk 0:02:59]} 3. Nf3 {[%clk 0:02:54]}  c6 {[%clk 0:02:56]} 4. h3 {[%clk 0:02:53]}  d5 {[%clk 0:02:57]} 5. Nc3 {[%clk 0:02:52]}  Nf6 {[%clk 0:02:52]} 6. e5 {[%clk 0:02:42]}  Ne4 {[%clk 0:02:52]} 7. Nxe4 {[%clk 0:02:43]}  dxe4 {[%clk 0:02:53]} 8. Ng5 {[%clk 0:02:43]}  c5 {[%clk 0:02:53]} 9. Bc4 {[%clk 0:02:32]}  O-O {[%clk 0:02:52]} 10. dxc5 {[%clk 0:02:31]}  Qa5+ {[%clk 0:02:49]} 11. c3 {[%clk 0:02:29]}  Nc6 {[%clk 0:02:39]} 12. Nxe4 {[%clk 0:01:50]}  Bf5 {[%clk 0:02:33]} 13. Qe2 {[%clk 0:01:49]}  Nxe5 {[%clk 0:02:29]} 14. Bb3 {[%clk 0:01:49]}  Qa6 {[%clk 0:02:15]} 15. Qxa6 {[%clk 0:01:42]}  bxa6 {[%clk 0:02:15]} 16. Ng3 {[%clk 0:01:42]}  Nd3+ {[%clk 0:02:13]} 17. Ke2 {[%clk 0:01:42]}  Nxc5 {[%clk 0:02:13]} 18. Nxf5 {[%clk 0:01:42]}  gxf5 {[%clk 0:02:14]} 19. Be3 {[%clk 0:01:38]}  Rfc8 {[%clk 0:02:12]} 20. Rhd1 {[%clk 0:01:20]}  a5 {[%clk 0:01:56]} 21. Rd5 {[%clk 0:01:12]}  Nxb3 {[%clk 0:01:47]} 22. axb3 {[%clk 0:01:13]}  Rab8 {[%clk 0:01:48]} 23. Raxa5 {[%clk 0:01:09]}  Rxb3 {[%clk 0:01:45]} 24. Bc1 {[%clk 0:01:09]}  Rb7 {[%clk 0:01:30]} 25. Rxf5 {[%clk 0:01:07]}  e6 {[%clk 0:01:31]} 26. Rfb5 {[%clk 0:01:05]}  Rcb8 {[%clk 0:01:31]} 27. Rxb7 {[%clk 0:01:05]}  Rxb7 {[%clk 0:01:32]} 28. Kd3 {[%clk 0:01:05]}  Bf6 {[%clk 0:01:25]} 29. b4 {[%clk 0:00:57]}  Rc7 {[%clk 0:01:20]} 30. Bd2 {[%clk 0:00:57]}  Kf8 {[%clk 0:01:16]} 31. Ra6 {[%clk 0:00:56]}  Ke8 {[%clk 0:01:15]} 32. g4 {[%clk 0:00:46]}  Kd7 {[%clk 0:01:13]} 33. c4 {[%clk 0:00:43]}  Kc8 {[%clk 0:01:13]} 34. Be3 {[%clk 0:00:43]}  Rd7+ {[%clk 0:01:13]} 35. Ke4 {[%clk 0:00:40]}  Kb8 {[%clk 0:01:13]} 36. b5 {[%clk 0:00:36]}  Be7 {[%clk 0:01:05]} 37. c5 {[%clk 0:00:27]}  Rd5 {[%clk 0:00:56]} 38. c6 {[%clk 0:00:26]}  Rxb5 {[%clk 0:00:50]} 39. Rxa7 {[%clk 0:00:25]}  f5+ {[%clk 0:00:49]} 40. Kf3 {[%clk 0:00:22]}  Bd6 {[%clk 0:00:44]} 41. Rxh7 {[%clk 0:00:21]}  Rb3 {[%clk 0:00:36]} 42. Rf7 {[%clk 0:00:14]}  f4 {[%clk 0:00:34]} 43. Rxf4 {[%clk 0:00:14]}  Bxf4 {[%clk 0:00:32]} 44. Kxf4 {[%clk 0:00:15]}  Kc7 {[%clk 0:00:32]} 45. Ke5 {[%clk 0:00:15]}  Kxc6 {[%clk 0:00:19]} 46. Kxe6 {[%clk 0:00:15]}  Rb4 {[%clk 0:00:20]} 47. Kf5 {[%clk 0:00:11]}  Kd7 {[%clk 0:00:20]} 48. h4 {[%clk 0:00:10]}  Ke8 {[%clk 0:00:20]} 49. h5 {[%clk 0:00:10]}  Kf7 {[%clk 0:00:21]} 50. g5 {[%clk 0:00:10]}  Rb5+ {[%clk 0:00:20]} 51. Kg4 {[%clk 0:00:10]}  Rb1 {[%clk 0:00:20]} 52. g6+ {[%clk 0:00:10]}  Kg7 {[%clk 0:00:20]} 53. Bg5 {[%clk 0:00:05]}  Rh1 {[%clk 0:00:11]} 54. f4 {[%clk 0:00:05]}  Rb1 {[%clk 0:00:06]} 55. f5 {[%clk 0:00:04]}  Rg1+ {[%clk 0:00:07]} 56. Kf4 {[%clk 0:00:04]}  Rf1+ {[%clk 0:00:07]} 57. Ke4 {[%clk 0:00:04]}  Re1+ {[%clk 0:00:08]} 58. Be3 {[%clk 0:00:05]}  Kf6 {[%clk 0:00:04]} 59. h6 {[%clk 0:00:04]}  Rh1 {[%clk 0:00:03]} 60. h7 {[%clk 0:00:05]}  Rh4+ {[%clk 0:00:02]} 61. Kd3 {[%clk 0:00:05]}  Kxf5 {[%clk 0:00:02]} 62. g7 {[%clk 0:00:05]}  Rxh7 {[%clk 0:00:02]} 63. g8=Q {[%clk 0:00:05]} 1-0


[Site "https://www.chess.com"]

[Event "Titled Tuesday Blitz August 09 Late 2022"]
[White "Sorkin, Igor"]
[Black "Rosen, Eric"]
[WhiteFideId "2803283"]
[BlackFideId "2032562"]
[WhiteElo "2401"]
[BlackElo "2362"]
[Result "0-1"]
[Round "08"]
[TimeControl "180+1"]
[Date "2022.08.09"]
[WhiteClock "0:00:14"]
[BlackClock "0:00:06"]

1. d4 {[%clk 0:03:00]}  d5 {[%clk 0:02:56]} 2. Nf3 {[%clk 0:03:00]}  Nf6 {[%clk 0:02:55]} 3. Bf4 {[%clk 0:03:00]}  c5 {[%clk 0:02:56]} 4. e3 {[%clk 0:03:00]}  Nc6 {[%clk 0:02:56]} 5. Nbd2 {[%clk 0:03:01]}  cxd4 {[%clk 0:02:57]} 6. exd4 {[%clk 0:03:01]}  Bf5 {[%clk 0:02:57]} 7. c3 {[%clk 0:03:01]}  e6 {[%clk 0:02:58]} 8. Qb3 {[%clk 0:03:01]}  Bd6 {[%clk 0:02:58]} 9. Bg3 {[%clk 0:02:56]}  O-O {[%clk 0:02:56]} 10. Be2 {[%clk 0:02:54]}  Rb8 {[%clk 0:02:49]} 11. a4 {[%clk 0:02:39]}  h6 {[%clk 0:02:48]} 12. O-O {[%clk 0:02:38]}  a6 {[%clk 0:02:38]} 13. Bxd6 {[%clk 0:02:34]}  Qxd6 {[%clk 0:02:38]} 14. Qa3 {[%clk 0:02:35]}  Qc7 {[%clk 0:02:37]} 15. a5 {[%clk 0:02:34]}  Ne8 {[%clk 0:02:37]} 16. Rfc1 {[%clk 0:02:32]}  Nd6 {[%clk 0:02:36]} 17. h3 {[%clk 0:02:30]}  Rfe8 {[%clk 0:02:33]} 18. b3 {[%clk 0:02:13]}  Ne4 {[%clk 0:02:24]} 19. Nf1 {[%clk 0:02:10]}  Rbd8 {[%clk 0:02:12]} 20. Ne3 {[%clk 0:02:06]}  Bg6 {[%clk 0:02:08]} 21. Bf1 {[%clk 0:01:49]}  Qf4 {[%clk 0:02:07]} 22. Qb2 {[%clk 0:01:35]}  Bh5 {[%clk 0:02:06]} 23. Ne1 {[%clk 0:01:33]}  Rc8 {[%clk 0:01:52]} 24. Nd3 {[%clk 0:01:32]}  Qf6 {[%clk 0:01:49]} 25. b4 {[%clk 0:01:31]}  Rc7 {[%clk 0:01:37]} 26. Re1 {[%clk 0:01:24]}  Ne7 {[%clk 0:01:26]} 27. Nc5 {[%clk 0:01:20]}  Nd6 {[%clk 0:01:18]} 28. b5 {[%clk 0:01:11]}  axb5 {[%clk 0:01:02]} 29. Bxb5 {[%clk 0:01:12]}  Ra8 {[%clk 0:00:59]} 30. Bd3 {[%clk 0:01:08]}  Ng6 {[%clk 0:00:43]} 31. Qb6 {[%clk 0:01:08]}  Rc6 {[%clk 0:00:38]} 32. Qb4 {[%clk 0:01:02]}  Nf4 {[%clk 0:00:34]} 33. Bf1 {[%clk 0:01:03]}  Qg5 {[%clk 0:00:27]} 34. Kh2 {[%clk 0:01:02]}  Ra7 {[%clk 0:00:15]} 35. a6 {[%clk 0:00:46]}  b6 {[%clk 0:00:15]} 36. Nb7 {[%clk 0:00:36]}  Nxb7 {[%clk 0:00:12]} 37. axb7 {[%clk 0:00:37]}  Rxb7 {[%clk 0:00:13]} 38. Ra8+ {[%clk 0:00:37]}  Kh7 {[%clk 0:00:13]} 39. Qf8 {[%clk 0:00:36]}  Rxc3 {[%clk 0:00:11]} 40. Qh8+ {[%clk 0:00:32]}  Kg6 {[%clk 0:00:12]} 41. Rg8 {[%clk 0:00:33]}  f6 {[%clk 0:00:09]} 42. g4 {[%clk 0:00:28]}  Qh4 {[%clk 0:00:04]} 43. gxh5+ {[%clk 0:00:12]}  Kxh5 {[%clk 0:00:05]} 44. Ng4 {[%clk 0:00:12]}  Rxh3+ {[%clk 0:00:04]} 45. Bxh3 {[%clk 0:00:13]}  Qxh3+ {[%clk 0:00:05]} 46. Kg1 {[%clk 0:00:14]}  Qg2# {[%clk 0:00:06]} 0-1


[Site "https://www.chess.com"]